bitfinex/quotes_BTCUSD_20240719
["timestamp","ask_amount","ask_price","bid_price","bid_amount"]
[1721383240983,0.156831,63763.0,63756.0,0.07717479]
[1721383241189,0.156831,63763.0,63756.0,0.23402179]
[1721383241399,0.156835,63761.0,63756.0,0.07717479]
[1721383241706,0.470506,63761.0,63756.0,0.07717479]
[1721383241863,0.484506,63761.0,63756.0,0.07717479]
[1721383242070,0.014,63761.0,63756.0,0.07717479]
[1721383242274,0.313653,63765.0,63756.0,0.07717479]
[1721383242275,0.313659,63764.0,63756.0,0.07717479]
[1721383242485,0.170835,63761.0,63756.0,0.07717479]
[1721383242686,0.156835,63761.0,63756.0,0.07717479]
[1721383243049,0.168835,63761.0,63756.0,0.07717479]
[1721383243450,0.168835,63761.0,63760.0,0.01178143]
[1721383243888,0.181835,63761.0,63760.0,0.01178143]
[1721383244527,0.025,63761.0,63760.0,0.62159543]
[1721383244694,0.025,63761.0,63760.0,0.95827143]
[1721383245686,0.012,63761.0,63760.0,1.55659616]
[1721383245933,0.156793,63779.0,63774.0,0.1447]
[1721383246152,0.002794,63778.0,63774.0,0.1447]
[1721383246387,0.31355,63786.0,63776.0,0.156798]
[1721383246388,0.159578,63782.0,63776.0,0.156798]
[1721383246798,0.159578,63782.0,63774.0,0.301502]
[1721383246799,0.156786,63781.0,63774.0,0.301502]
[1721383246966,0.002794,63780.0,63777.0,0.00259586]
[1721383247178,0.156786,63781.0,63774.0,0.301502]
[1721383247376,0.002794,63780.0,63778.0,0.00259586]
[1721383247574,0.156786,63781.0,63775.0,0.156801]
[1721383247779,0.156786,63781.0,63779.0,0.00259586]
[1721383247984,0.156786,63781.0,63775.0,0.156801]
[1721383248191,0.166786,63781.0,63780.0,0.00259586]
[1721383248431,0.166786,63781.0,63775.0,0.156801]
[1721383248635,0.166786,63781.0,63780.0,0.00259586]
[1721383248636,0.156786,63781.0,63780.0,0.00259586]
[1721383248995,0.012794,63781.0,63775.0,0.1568]
[1721383249167,0.01,63781.0,63780.0,0.00259586]
[1721383249370,0.01,63781.0,63775.0,0.1568]
[1721383249591,0.166786,63781.0,63780.0,0.00259586]
[1721383249785,0.166786,63781.0,63775.0,0.1568]
[1721383249988,0.166786,63781.0,63780.0,0.00259586]
[1721383250196,0.174786,63781.0,63780.0,0.00259586]
[1721383250373,0.164786,63781.0,63775.0,0.1568]
[1721383250717,0.164786,63781.0,63774.0,0.1447]
[1721383250718,0.156786,63781.0,63780.0,0.00259586]
[1721383251003,0.018,63781.0,63777.0,0.156794]
[1721383251228,0.008,63781.0,63778.0,0.07717479]
[1721383251423,0.008,63781.0,63780.0,0.547665]
[1721383251645,0.018,63781.0,63780.0,0.547665]
[1721383251852,0.018,63781.0,63780.0,0.61344899]
[1721383252235,0.002794,63786.0,63782.0,0.156783]
[1721383252608,0.008,63781.0,63780.0,0.454077]
[1721383252809,0.008,63781.0,63780.0,0.610865]
[1721383253474,0.008,63781.0,63780.0,0.297288]
[1721383253672,0.018,63781.0,63780.0,0.297288]
[1721383253883,0.019,63781.0,63780.0,0.297288]
[1721383254662,0.01983,63781.0,63780.0,0.297288]
[1721383254863,0.00983,63781.0,63780.0,0.297288]
[1721383255339,0.01283,63781.0,63780.0,0.297288]
[1721383257594,0.01283,63781.0,63780.0,0.1405]
[1721383259324,0.169616,63781.0,63780.0,0.0773]
[1721383259524,0.156792,63779.0,63776.0,0.0613]
[1721383259732,0.01283,63781.0,63776.0,0.0613]
[1721383259733,0.316374,63780.0,63776.0,0.0613]
[1721383259937,0.156796,63778.0,63776.0,0.0613]
[1721383260556,0.002794,63777.0,63776.0,0.0613]
[1721383260749,0.156796,63778.0,63776.0,0.0613]
[1721383260899,0.156796,63778.0,63776.0,0.0623]
[1721383261101,0.00083,63781.0,63777.0,0.07717479]
[1721383261304,0.00083,63781.0,63780.0,0.156788]
[1721383261779,0.00083,63781.0,63780.0,0.238488]
[1721383262141,0.00083,63781.0,63780.0,0.552065]
[1721383263114,0.00183,63781.0,63780.0,0.552065]
[1721383263298,0.00183,63781.0,63780.0,0.238488]
[1721383263499,0.00483,63781.0,63780.0,0.238488]
[1721383263704,0.00483,63781.0,63780.0,0.552065]
[1721383264105,0.00183,63781.0,63780.0,0.552065]
[1721383264671,0.00483,63781.0,63780.0,0.575065]
[1721383269369,0.00483,63781.0,63780.0,0.954142]
[1721383269577,0.00483,63781.0,63780.0,1.267719]
[1721383270475,0.00183,63781.0,63780.0,1.267719]
[1721383270677,0.00483,63781.0,63780.0,1.42210074]
[1721383271126,0.00383,63781.0,63780.0,1.42210074]
[1721383271372,0.00083,63781.0,63780.0,1.55231784]
[1721383271607,0.00083,63781.0,63780.0,1.55331784]
[1721383271608,0.00283,63781.0,63780.0,1.55331784]
[1721383271873,0.00183,63781.0,63780.0,1.55331878]
[1721383272129,0.00183,63781.0,63780.0,1.42310074]
[1721383272609,0.00183,63781.0,63780.0,1.55332062]
[1721383273041,0.00183,63781.0,63780.0,1.55432062]
[1721383273192,0.00183,63781.0,63780.0,1.91789762]
[1721383273404,0.00183,63781.0,63780.0,2.23047462]
[1721383273598,0.00183,63781.0,63780.0,2.33047462]
[1721383273798,0.00183,63781.0,63780.0,2.33147462]
[1721383274209,0.00083,63790.0,63789.0,1.460898]
[1721383274412,0.00083,63790.0,63789.0,1.86279962]
[1721383275430,0.00083,63790.0,63789.0,1.86277308]
[1721383275694,0.00083,63790.0,63789.0,1.91277308]
[1721383276853,0.00183,63790.0,63789.0,1.91577308]
[1721383277127,0.00183,63790.0,63789.0,2.01777308]
[1721383277396,0.00034044,63790.0,63789.0,2.01777308]
[1721383278576,0.00034044,63790.0,63789.0,2.01776783]
[1721383278979,0.00083,63811.0,63792.0,0.05]
[1721383279188,0.31333,63831.0,63792.0,0.05]
[1721383279189,0.00834,63842.0,63841.0,0.156639]
[1721383279398,0.00834,63842.0,63841.0,0.783195]
[1721383279602,0.00834,63842.0,63841.0,1.119473]
[1721383279828,0.00834,63842.0,63841.0,1.256173]
[1721383280262,0.00834,63853.0,63841.0,1.256173]
[1721383280263,0.00834,63853.0,63843.0,0.1367]
[1721383280473,0.00834,63853.0,63852.0,0.78306]
[1721383280761,0.00834,63853.0,63852.0,0.96044174]
[1721383281784,0.00834,63853.0,63852.0,0.97444174]
[1721383281926,0.00834,63853.0,63852.0,1.33706574]
[1721383282773,0.00834,63865.0,63863.0,0.469755]
[1721383282974,0.00834,63865.0,63863.0,0.492755]
[1721383283179,0.00834,63865.0,63863.0,0.805925]
[1721383283416,0.00834,63865.0,63863.0,0.492755]
[1721383283633,0.00834,63865.0,63863.0,0.805925]
[1721383283981,0.00834,63865.0,63863.0,0.96530674]
[1721383284642,0.00834,63865.0,63863.0,0.186585]
[1721383284839,0.00834,63865.0,63863.0,0.499755]
[1721383285051,0.00834,63865.0,63863.0,0.494755]
[1721383285478,0.00834,63865.0,63863.0,0.499755]
[1721383285705,0.00834,63865.0,63863.0,0.812925]
[1721383286341,0.00834,63865.0,63863.0,0.499755]
[1721383286551,0.00834,63865.0,63864.0,0.469747]
[1721383286752,0.00834,63865.0,63864.0,0.492747]
[1721383287946,0.00834,63865.0,63864.0,0.496747]
[1721383288189,0.00834,63865.0,63864.0,0.809912]
[1721383289793,0.00834,63865.0,63864.0,0.806912]
[1721383289962,0.00834,63865.0,63864.0,0.812912]
[1721383290353,0.00834,63865.0,63864.0,0.806912]
[1721383290532,0.00834,63865.0,63864.0,0.805912]
[1721383290740,0.00834,63865.0,63864.0,0.812912]
[1721383290933,0.00834,63865.0,63864.0,0.813912]
[1721383291339,0.00834,63865.0,63864.0,0.812912]
[1721383291691,0.00834,63865.0,63864.0,0.817912]
[1721383292097,0.00834,63865.0,63864.0,0.191582]
[1721383292302,0.00834,63865.0,63864.0,0.504747]
[1721383292505,0.00834,63865.0,63864.0,0.817912]
[1721383292710,0.00083,63872.0,63868.0,0.156572]
[1721383293672,0.00083,63872.0,63865.0,0.07717479]
[1721383293874,0.00083,63872.0,63871.0,0.469696]
[1721383294202,0.00383,63872.0,63871.0,0.534096]
[1721383294400,0.513069,63884.0,63871.0,0.534096]
[1721383294401,0.156539,63882.0,63876.0,0.156552]
[1721383294649,0.156539,63882.0,63874.0,0.313113]
[1721383294822,0.313069,63884.0,63878.0,0.156548]
[1721383295047,0.313058,63886.0,63878.0,0.156548]
[1721383295048,0.156536,63883.0,63879.0,0.002794]
[1721383295309,0.313058,63886.0,63878.0,0.313095]
[1721383295310,0.156533,63885.0,63878.0,0.313095]
[1721383295483,0.156533,63885.0,63879.0,0.156544]
[1721383296073,0.156528,63886.0,63881.0,0.156541]
[1721383296318,0.313049,63888.0,63880.0,0.156543]
[1721383296319,0.156531,63885.0,63880.0,0.156543]
[1721383296532,0.156531,63885.0,63876.0,0.313104]
[1721383296533,0.003,63882.0,63878.0,0.156547]
[1721383296741,0.003,63882.0,63877.0,0.15655]
[1721383296742,0.159539,63882.0,63877.0,0.15655]
[1721383296949,0.161539,63882.0,63877.0,0.15655]
[1721383297124,0.005,63882.0,63879.0,0.001]
[1721383297606,0.316063,63885.0,63878.0,0.159341]
[1721383297770,0.008,63882.0,63878.0,0.161341]
[1721383297976,0.008,63882.0,63878.0,0.157547]
[1721383298137,0.003,63882.0,63878.0,0.313095]
[1721383298697,0.003,63882.0,63880.0,0.156542]
[1721383299310,0.005,63882.0,63880.0,0.156542]
[1721383299668,0.005,63882.0,63879.0,0.001]
[1721383299868,0.005,63882.0,63879.0,0.157545]
[1721383300250,0.008,63882.0,63879.0,0.158545]
[1721383300451,0.006,63882.0,63879.0,0.157545]
[1721383300897,0.011,63882.0,63880.0,0.001]
[1721383301103,0.011,63882.0,63881.0,0.156541]
[1721383301303,0.006,63882.0,63880.0,0.156543]
[1721383301725,0.011,63882.0,63879.0,0.002]
[1721383302103,0.005,63882.0,63878.0,0.156546]
[1721383302420,0.156536,63883.0,63879.0,0.159339]
[1721383302625,0.156536,63883.0,63880.0,0.001]
[1721383302626,0.005,63882.0,63880.0,0.001]
[1721383303395,0.008,63882.0,63881.0,0.157541]
[1721383303613,0.005,63882.0,63881.0,0.156541]
[1721383304024,0.003,63882.0,63881.0,0.156541]
[1721383304237,0.008,63882.0,63881.0,0.156541]
[1721383304646,0.008,63882.0,63880.0,0.001]
[1721383304862,0.008,63882.0,63880.0,0.157543]
[1721383305345,0.006,63882.0,63881.0,0.001]
[1721383306461,0.01,63882.0,63881.0,0.001]
[1721383307144,0.004,63882.0,63879.0,0.156545]
[1721383307482,0.004,63882.0,63880.0,0.13004336]
[1721383307692,0.004,63882.0,63879.0,0.156545]
[1721383307693,0.617815,63882.0,63881.0,0.13004336]
[1721383307896,0.617815,63882.0,63867.0,0.002794]
[1721383307897,0.232472,63868.0,63867.0,0.002794]
[1721383308078,0.232472,63868.0,63867.0,0.13006815]
[1721383308079,0.611917,63868.0,63867.0,0.13006815]
[1721383308885,0.156576,63867.0,63862.0,0.002794]
[1721383309033,0.455345,63868.0,63865.0,0.01881785]
[1721383309034,0.1422,63868.0,63865.0,0.01881785]
[1721383309234,0.0759,63868.0,63866.0,0.1328632]
[1721383309466,0.313117,63874.0,63866.0,0.1328632]
[1721383309467,0.0633,63878.0,63867.0,0.40234413]
[1721383309639,0.313107,63876.0,63869.0,0.156569]
[1721383309875,0.156558,63874.0,63870.0,0.1300692]
[1721383310040,0.156558,63874.0,63871.0,0.1300692]
[1721383310265,0.156558,63874.0,63872.0,0.1300692]
[1721383310464,0.313107,63876.0,63870.0,0.0188172]
[1721383310465,0.156564,63872.0,63870.0,0.0188172]
[1721383310669,0.156564,63872.0,63871.0,0.13006129]
[1721383311045,0.469678,63874.0,63871.0,0.13006129]
[1721383311272,0.00908352,63887.0,63873.0,0.1434]
[1721383311622,0.00283,63889.0,63882.0,0.07717479]
[1721383311623,0.156532,63885.0,63882.0,0.07717479]
[1721383311824,0.156532,63885.0,63883.0,0.13006129]
[1721383312028,0.156532,63885.0,63884.0,0.13003488]
[1721383313814,0.168528,63887.0,63884.0,0.13003488]
[1721383314161,0.168528,63887.0,63883.0,0.01881291]
[1721383314162,0.156528,63887.0,63885.0,0.13003488]
[1721383314336,0.00283,63889.0,63886.0,0.13003488]
[1721383314550,0.00283,63889.0,63887.0,0.13003488]
[1721383314679,0.00283,63889.0,63888.0,0.13003488]
[1721383314875,0.00283,63889.0,63886.0,0.156527]
[1721383315077,0.00283,63889.0,63887.0,0.13003152]
[1721383315380,0.00283,63889.0,63888.0,0.13003152]
[1721383315854,0.472393,63889.0,63888.0,0.13003152]
[1721383316049,0.474393,63889.0,63888.0,0.13003152]
[1721383316774,0.161351,63889.0,63888.0,0.13003152]
[1721383317006,0.00483,63889.0,63888.0,0.13003152]
[1721383317209,0.00483,63889.0,63888.0,0.28655452]
[1721383317379,0.00883,63889.0,63888.0,0.59960152]
[1721383317579,0.00883,63889.0,63888.0,0.8134491]
[1721383317996,0.00483,63889.0,63888.0,0.5004021]
[1721383318402,0.00483,63889.0,63888.0,1.34325692]
[1721383318403,0.00883,63889.0,63888.0,1.34325692]
[1721383318529,0.0851,63909.0,63888.0,0.58363992]
[1721383318734,0.0851,63909.0,63902.0,0.01880767]
[1721383318735,0.158473,63909.0,63902.0,0.01880767]
[1721383318952,0.158473,63909.0,63901.0,0.312982]
[1721383318953,0.002,63909.0,63905.0,0.01880767]
[1721383319186,0.002,63909.0,63905.0,0.34386585]
[1721383319525,0.002,63909.0,63905.0,0.13002327]
[1721383319728,0.002,63909.0,63905.0,0.28650527]
[1721383320432,0.002,63909.0,63905.0,0.59946927]
[1721383320611,0.00934,63906.0,63905.0,0.59946927]
[1721383320852,0.00934,63906.0,63905.0,0.469446]
[1721383321046,0.01034,63906.0,63905.0,0.59943156]
[1721383321427,0.01134,63906.0,63905.0,0.59943156]
[1721383321636,0.01334,63906.0,63905.0,0.91239556]
[1721383321834,0.002,63909.0,63908.0,0.469423]
[1721383322007,0.002,63909.0,63908.0,0.28645956]
[1721383322215,0.002,63909.0,63908.0,0.12998556]
[1721383322597,0.002,63909.0,63908.0,0.28645956]
[1721383323609,0.002,63909.0,63908.0,0.5994057]
[1721383324250,0.002,63909.0,63908.0,0.2864567]
[1721383324487,0.002,63909.0,63908.0,0.33310633]
[1721383324694,0.002,63909.0,63908.0,0.75019989]
[1721383325248,0.002,63909.0,63908.0,0.47707362]
[1721383325449,0.002,63909.0,63908.0,0.63354762]
[1721383326299,0.002,63909.0,63908.0,0.59390128]
[1721383326431,0.002,63909.0,63908.0,0.47707362]
[1721383326432,0.235372,63909.0,63908.0,0.47707362]
[1721383326634,0.235372,63909.0,63908.0,0.17670751]
[1721383326635,0.69158801,63909.0,63908.0,0.17670751]
[1721383326833,0.69158801,63909.0,63896.0,0.33181136]
[1721383326834,0.69158801,63909.0,63907.0,0.04672481]
[1721383327049,0.69158801,63909.0,63897.0,0.156499]
[1721383327051,0.69158801,63909.0,63906.0,0.04672481]
[1721383327052,0.469431,63907.0,63906.0,0.04672481]
[1721383327229,0.469431,63907.0,63906.0,0.17672354]
[1721383327433,0.782385,63907.0,63906.0,0.17672354]
[1721383327678,0.782385,63907.0,63906.0,0.12999873]
[1721383328072,0.156477,63907.0,63906.0,0.12999873]
[1721383328276,0.31294501,63909.0,63906.0,0.12999873]
[1721383328521,0.156476,63908.0,63907.0,0.13279273]
[1721383328719,1e-08,63909.0,63907.0,0.25389833]
[1721383328930,1e-08,63909.0,63908.0,0.13279273]
[1721383329101,1e-08,63909.0,63908.0,0.12999873]
[1721383329323,1e-08,63909.0,63908.0,0.13279273]
[1721383329521,1e-08,63909.0,63908.0,0.472217]
[1721383329723,1e-08,63909.0,63908.0,0.59940763]
[1721383330067,1e-08,63909.0,63908.0,0.59940798]
[1721383331136,1e-08,63909.0,63908.0,0.12998498]
[1721383331345,1e-08,63909.0,63908.0,0.99595098]
[1721383331513,1e-08,63909.0,63908.0,0.36725898]
[1721383331917,1e-08,63909.0,63908.0,0.68020798]
[1721383332433,1e-08,63909.0,63908.0,0.68120798]
[1721383332682,1e-08,63909.0,63908.0,0.551223]
[1721383332867,1e-08,63909.0,63908.0,0.550223]
[1721383333221,1e-08,63909.0,63908.0,0.865172]
[1721383333439,1e-08,63909.0,63908.0,0.552223]
[1721383333690,1e-08,63909.0,63908.0,0.865172]
[1721383334225,1e-08,63909.0,63908.0,0.926672]
[1721383334700,1e-08,63909.0,63908.0,0.930672]
[1721383335757,1e-08,63909.0,63908.0,0.617723]
[1721383336524,1e-08,63909.0,63908.0,0.556223]
[1721383336723,1e-08,63909.0,63908.0,0.0868]
[1721383336724,0.31294401,63909.0,63908.0,0.0868]
[1721383336926,0.78236001,63909.0,63908.0,0.006]
[1721383337344,1e-08,63909.0,63908.0,0.006]
[1721383337888,1e-08,63909.0,63908.0,0.162474]
[1721383338093,1e-08,63909.0,63908.0,0.158474]
[1721383338300,1e-08,63909.0,63908.0,0.846372]
[1721383338503,1e-08,63909.0,63908.0,0.847372]
[1721383339080,1e-08,63909.0,63908.0,0.846372]
[1721383339275,1e-08,63909.0,63908.0,1.31370274]
[1721383339480,1e-08,63909.0,63908.0,1.41600274]
[1721383340581,1e-08,63909.0,63908.0,1.54596523]
[1721383341123,1e-08,63909.0,63908.0,1.54896523]
[1721383341367,1e-08,63909.0,63908.0,1.54596523]
[1721383341787,1e-08,63909.0,63908.0,1.42500274]
[1721383341959,1e-08,63909.0,63908.0,1.42600274]
[1721383342501,1e-08,63909.0,63908.0,1.42500274]
[1721383342948,1e-08,63909.0,63908.0,1.43200274]
[1721383344477,1e-08,63909.0,63908.0,1.56197684]
[1721383345129,1e-08,63909.0,63908.0,1.56197345]
[1721383345343,1e-08,63909.0,63908.0,1.92492245]
[1721383345533,1e-08,63909.0,63908.0,1.56197345]
[1721383347916,0.00834,63928.0,63908.0,1.56197345]
[1721383347917,0.00834,63928.0,63922.0,0.0761]
[1721383348122,0.00834,63928.0,63926.0,0.15643]
[1721383348580,0.00834,63928.0,63924.0,0.156433]
[1721383350691,0.00834,63928.0,63925.0,0.156432]
[1721383351620,0.00834,63928.0,63925.0,0.312863]
[1721383351858,0.00834,63928.0,63926.0,0.156429]
[1721383352099,0.00834,63928.0,63927.0,0.78214]
[1721383354383,0.00834,63928.0,63927.0,0.91207581]
[1721383355074,0.00834,63928.0,63927.0,0.91507581]
[1721383355521,0.00834,63928.0,63927.0,0.91207581]
[1721383355720,0.00834,63928.0,63927.0,0.91607581]
[1721383356352,0.00834,63928.0,63927.0,1.38331355]
[1721383356553,0.00834,63928.0,63927.0,1.52261355]
[1721383356958,0.00834,63928.0,63927.0,1.52961355]
[1721383357152,0.00834,63928.0,63927.0,1.20975755]
[1721383357371,0.00834,63928.0,63927.0,1.20975511]
[1721383357560,0.00834,63928.0,63927.0,1.21075511]
[1721383357958,0.00834,63928.0,63927.0,1.20875511]
[1721383358515,0.00834,63928.0,63927.0,1.20575511]
[1721383358837,0.00834,63928.0,63927.0,1.20775511]
[1721383359209,0.00834,63928.0,63927.0,1.21475511]
[1721383359410,0.00834,63928.0,63927.0,1.21275511]
[1721383359788,0.00834,63928.0,63927.0,1.21775511]
[1721383360114,0.00834,63928.0,63927.0,1.14485511]
[1721383360315,0.00834,63928.0,63927.0,1.14985511]
[1721383360507,0.00834,63928.0,63927.0,1.01992174]
[1721383360734,0.00834,63928.0,63927.0,1.14985549]
[1721383360932,0.00834,63928.0,63927.0,1.15785549]
[1721383361365,0.00834,63928.0,63927.0,1.15485549]
[1721383361579,0.00834,63928.0,63927.0,0.68761775]
[1721383361718,0.00834,63928.0,63927.0,0.69061775]
[1721383362380,0.00834,63928.0,63927.0,0.68761775]
[1721383362624,0.00834,63928.0,63927.0,0.67961775]
[1721383362930,0.00834,63928.0,63927.0,0.28836175]
[1721383363111,0.00834,63928.0,63927.0,0.006]
[1721383363347,0.790467,63928.0,63927.0,0.006]
[1721383363724,0.856967,63928.0,63927.0,0.002]
[1721383363861,0.856967,63928.0,63927.0,0.006]
[1721383364056,0.856967,63928.0,63917.0,0.156452]
[1721383364057,0.156438,63923.0,63917.0,0.156452]
[1721383364256,0.156438,63923.0,63916.0,0.31309733]
[1721383364257,0.156438,63923.0,63918.0,0.15645]
[1721383365112,0.156436,63924.0,63919.0,0.156447]
[1721383365311,0.156435,63925.0,63920.0,0.23361879]
[1721383365513,0.387691,63928.0,63920.0,0.23361879]
[1721383365514,0.156429,63927.0,63920.0,0.07717479]
[1721383365816,0.387691,63928.0,63924.0,0.156434]
[1721383365817,0.00834,63928.0,63924.0,0.156434]
[1721383366020,0.00834,63928.0,63924.0,0.1406]
[1721383366234,0.00834,63928.0,63927.0,0.469284]
[1721383366496,0.00834,63928.0,63927.0,0.156428]
[1721383367192,0.00834,63928.0,63927.0,0.469284]
[1721383368886,0.00834,63928.0,63927.0,0.156428]
[1721383369365,0.00834,63928.0,63927.0,0.469284]
[1721383369838,0.00834,63928.0,63927.0,0.470284]
[1721383372810,0.00834,63928.0,63927.0,0.469284]
[1721383373050,0.00834,63928.0,63927.0,0.471284]
[1721383373822,0.00834,63928.0,63927.0,0.78414]
[1721383374523,0.00834,63928.0,63927.0,0.78214]
[1721383374937,0.00834,63928.0,63927.0,0.78414]
[1721383375555,0.00834,63928.0,63927.0,0.78714]
[1721383376341,0.00834,63928.0,63927.0,0.78214]
[1721383376605,0.00834,63928.0,63927.0,0.78814]
[1721383377152,0.00834,63928.0,63927.0,1.100996]
[1721383377381,0.00834,63928.0,63927.0,1.46641095]
[1721383377856,0.00834,63928.0,63927.0,1.46941095]
[1721383378078,0.00834,63928.0,63927.0,1.46341095]
[1721383378323,0.00834,63928.0,63927.0,1.52811095]
[1721383378566,0.00834,63928.0,63927.0,1.52810474]
[1721383378795,0.00834,63928.0,63927.0,1.067867]
[1721383379260,0.00834,63928.0,63927.0,1.060867]
[1721383379499,0.00834,63928.0,63927.0,0.93094]
[1721383379811,0.00834,63928.0,63927.0,1.06886987]
[1721383379915,0.00834,63928.0,63927.0,1.38172587]
[1721383380399,0.00834,63928.0,63927.0,1.37472587]
[1721383380620,0.00834,63928.0,63927.0,1.38472587]
[1721383380838,0.00834,63928.0,63927.0,1.37672587]
[1721383381051,0.00834,63928.0,63927.0,1.38372587]
[1721383381252,0.00834,63928.0,63927.0,1.39472587]
[1721383381460,0.00834,63928.0,63927.0,1.39472509]
[1721383381661,0.00834,63928.0,63927.0,1.07486909]
[1721383381864,0.00834,63928.0,63927.0,0.95294]
[1721383382072,0.00834,63928.0,63927.0,1.08286934]
[1721383384908,0.00834,63928.0,63927.0,0.95294]
[1721383385145,0.00834,63928.0,63927.0,1.08286934]
[1721383386359,0.00834,63928.0,63927.0,1.02216934]
[1721383386788,0.00834,63928.0,63927.0,0.89224]
[1721383386995,0.00834,63928.0,63927.0,1.0221735]
[1721383387200,0.00834,63928.0,63927.0,0.89224]
[1721383390503,0.00675007,63928.0,63927.0,0.89224]
[1721383392618,0.00675007,63928.0,63927.0,1.02217325]
[1721383394085,0.00675007,63928.0,63927.0,0.89224]
[1721383394505,0.00675007,63928.0,63927.0,1.02217501]
[1721383395126,0.00670124,63928.0,63927.0,1.02217501]
[1721383396874,0.00670124,63928.0,63927.0,1.33503101]
[1721383397101,0.00670124,63928.0,63927.0,1.56660938]
[1721383397545,0.00670124,63928.0,63927.0,1.91646538]
[1721383398186,0.00670124,63928.0,63927.0,1.90846538]
[1721383398383,0.00670124,63928.0,63927.0,2.03046538]
[1721383398903,0.00670124,63928.0,63927.0,2.07738437]
[1721383399061,0.00670124,63928.0,63927.0,2.44774241]
[1721383399268,0.00670124,63928.0,63927.0,2.37736392]
[1721383399504,0.00670124,63928.0,63927.0,2.10081222]
[1721383399736,0.00670124,63928.0,63927.0,2.44771019]
[1721383399964,0.00670124,63928.0,63927.0,2.42571019]
[1721383400177,0.00670124,63928.0,63927.0,2.3663425]
[1721383400562,0.00670124,63928.0,63927.0,2.6931985]
[1721383400694,0.00670124,63928.0,63927.0,2.56118722]
[1721383400892,0.00670124,63928.0,63927.0,2.66275316]
[1721383401093,0.00670124,63928.0,63927.0,2.62675316]
[1721383401339,0.00670124,63928.0,63927.0,2.54698142]
[1721383401493,0.00670124,63928.0,63927.0,2.33332763]
[1721383401704,0.00670124,63928.0,63927.0,2.31932763]
[1721383401902,0.00670124,63928.0,63927.0,2.04275388]
[1721383402117,0.00670124,63928.0,63927.0,1.97244013]
[1721383402318,0.00670124,63928.0,63927.0,2.01931065]
[1721383402757,0.00670124,63928.0,63927.0,1.62258413]
[1721383402994,0.00670124,63928.0,63927.0,1.62259312]
[1721383403240,0.00670124,63928.0,63927.0,1.52067774]
[1721383403437,0.00670124,63928.0,63927.0,1.65059704]
[1721383403640,0.00670124,63928.0,63927.0,1.62259704]
[1721383403873,0.00670124,63928.0,63927.0,1.63659704]
[1721383404069,0.00670124,63928.0,63927.0,1.65059704]
[1721383404836,0.00670124,63928.0,63927.0,1.66459704]
[1721383406701,0.00670124,63928.0,63927.0,1.97745304]
[1721383406907,0.00670124,63928.0,63927.0,2.05045304]
[1721383407700,0.00670124,63928.0,63927.0,2.19627603]
[1721383407903,0.00504377,63928.0,63927.0,2.66770682]
[1721383408107,0.00504377,63928.0,63927.0,2.98056282]
[1721383408309,0.00504377,63928.0,63927.0,3.07431053]
[1721383409351,0.00504377,63928.0,63927.0,2.26690195]
[1721383409498,0.00504377,63928.0,63927.0,2.73334906]
[1721383409697,0.00504377,63928.0,63927.0,2.65366063]
[1721383410111,0.00504377,63928.0,63927.0,2.63966063]
[1721383410310,0.00504377,63928.0,63927.0,3.06020506]
[1721383410513,0.00504377,63928.0,63927.0,2.95251663]
[1721383410914,0.00504377,63928.0,63927.0,3.03220506]
[1721383411188,0.00504377,63928.0,63927.0,2.93851663]
[1721383411414,0.00504377,63928.0,63927.0,3.11781663]
[1721383411616,0.00504377,63928.0,63927.0,3.13181663]
[1721383412453,0.00504377,63928.0,63927.0,2.92414989]
[1721383412658,0.00504377,63928.0,63927.0,3.11780061]
[1721383412863,0.00504377,63928.0,63927.0,3.2348897]
[1721383413072,7.7e-07,63928.0,63927.0,3.71011318]
[1721383413289,0.00833,63938.0,63934.0,0.684533]
[1721383413497,0.00833,63938.0,63934.0,1.83741708]
[1721383413698,0.00833,63938.0,63934.0,2.19719706]
[1721383413907,0.00833,63938.0,63934.0,3.44848494]
[1721383414113,0.00833,63938.0,63934.0,3.02635503]
[1721383414341,0.00833,63938.0,63934.0,2.9093323]
[1721383414759,0.00833,63938.0,63934.0,3.2361543]
[1721383414970,0.00834,63946.0,63945.0,1.720224]
[1721383415186,0.00834,63946.0,63945.0,2.38480166]
[1721383415384,0.00834,63946.0,63945.0,2.48480166]
[1721383415589,0.00834,63946.0,63945.0,2.48477103]
[1721383416198,0.00834,63946.0,63945.0,2.53154282]
[1721383416399,0.00834,63946.0,63945.0,2.54454087]
[1721383416673,0.00834,63946.0,63945.0,2.49776922]
[1721383416898,0.00834,63946.0,63945.0,2.51176922]
[1721383417185,0.00834,63946.0,63945.0,3.14427364]
[1721383417311,0.00834,63946.0,63945.0,3.22836807]
[1721383417521,0.00834,63946.0,63945.0,3.17227364]
[1721383417743,0.00834,63946.0,63945.0,3.26577491]
[1721383417943,0.00834,63946.0,63945.0,3.25177491]
[1721383418295,0.00834,63946.0,63945.0,3.17227364]
[1721383418514,0.00834,63946.0,63945.0,2.69567374]
[1721383418665,1e-06,63947.0,63946.0,2.248259]
[1721383418882,1e-06,63947.0,63946.0,3.29146168]
[1721383419088,1e-06,63947.0,63946.0,3.21860395]
[1721383419966,1e-06,63947.0,63946.0,3.23539355]
[1721383420368,1e-06,63947.0,63946.0,3.23259955]
[1721383421207,0.00346504,63965.0,63963.0,0.05]
[1721383421357,0.00346504,63965.0,63964.0,0.92735975]
[1721383421555,0.00346504,63965.0,63964.0,1.60270178]
[1721383421756,0.00832,63970.0,63968.0,0.78164]
[1721383422017,0.00832,63970.0,63968.0,1.40150979]
[1721383422878,0.06922,63970.0,63968.0,1.37850979]
[1721383423092,0.06922,63970.0,63968.0,1.24867774]
[1721383424171,0.06922,63970.0,63968.0,1.26267774]
[1721383424779,0.06922,63970.0,63968.0,1.25736846]
[1721383424998,0.06922,63970.0,63968.0,1.26936846]
[1721383425540,0.06922,63970.0,63968.0,1.26067774]
[1721383426152,0.06922,63970.0,63968.0,1.24867774]
[1721383426563,0.06922,63970.0,63968.0,1.26267774]